[Event "Early-Titled-Tuesday-Blitz-December-26-2023"]
[Site "Chess.com"]
[Date "2023.12.26"]
[Round "9"]
[White "ZaidejasChEgis"]
[Black "Ziyamammadov"]
[Result "1-0"]
[WhiteElo "2225"]
[BlackElo "1886"]
[TimeControl "180+1"]
[EndTime "9:46:11 PST"]
[Termination "ZaidejasChEgis won by checkmate"]

1. e4 {[%clk 0:03:00.9]} 1... e6 {[%clk 0:02:58.8]} 2. d4 {[%clk 0:02:58.9]}
2... d5 {[%clk 0:02:58.9]} 3. Nc3 {[%clk 0:02:57.8]} 3... dxe4 {[%clk
0:02:57.7]} 4. Nxe4 {[%clk 0:02:57.2]} 4... Nd7 {[%clk 0:02:58.4]} 5. Nf3 {[%clk
0:02:55.5]} 5... Ngf6 {[%clk 0:02:59.3]} 6. Bd3 {[%clk 0:02:53.5]} 6... Nxe4
{[%clk 0:02:59]} 7. Bxe4 {[%clk 0:02:53.4]} 7... Nf6 {[%clk 0:02:59.5]} 8. Bd3
{[%clk 0:02:53.2]} 8... c5 {[%clk 0:03:00.1]} 9. dxc5 {[%clk 0:02:52.2]} 9...
Bxc5 {[%clk 0:02:59.9]} 10. O-O {[%clk 0:02:52.7]} 10... O-O {[%clk 0:02:59.5]}
11. Bg5 {[%clk 0:02:52]} 11... h6 {[%clk 0:02:59.6]} 12. Bh4 {[%clk 0:02:50.9]}
12... b6 {[%clk 0:02:57.7]} 13. Ne5 {[%clk 0:02:49.9]} 13... Bd6 {[%clk
0:02:48.3]} 14. Qe2 {[%clk 0:02:48.1]} 14... Be7 {[%clk 0:02:14.1]} 15. f4
{[%clk 0:02:46]} 15... Qd4+ {[%clk 0:02:11.8]} 16. Kh1 {[%clk 0:02:44]} 16...
Nd5 {[%clk 0:02:04.8]} 17. Bxe7 {[%clk 0:02:41.6]} 17... Nxe7 {[%clk 0:02:04.2]}
18. c3 {[%clk 0:02:41.8]} 18... Qd6 {[%clk 0:02:00.7]} 19. Qe4 {[%clk
0:02:40.5]} 19... g6 {[%clk 0:01:32.3]} 20. Qxa8 {[%clk 0:02:39.2]} 20... f6
{[%clk 0:01:24.7]} 21. Qe4 {[%clk 0:02:29.9]} 21... fxe5 {[%clk 0:01:13.5]} 22.
fxe5 {[%clk 0:02:29.5]} 22... Qc5 {[%clk 0:01:05.2]} 23. Rxf8+ {[%clk
0:02:26.5]} 23... Kxf8 {[%clk 0:01:04.8]} 24. Rf1+ {[%clk 0:02:26]} 24... Kg7
{[%clk 0:01:04.2]} 25. Qf4 {[%clk 0:02:25.6]} 25... Nf5 {[%clk 0:01:00.6]} 26.
Bxf5 {[%clk 0:02:24.4]} 26... exf5 {[%clk 0:01:00.5]} 27. Rd1 {[%clk 0:02:19]}
27... Be6 {[%clk 0:00:58.1]} 28. a3 {[%clk 0:02:13.7]} 28... g5 {[%clk
0:00:48.2]} 29. Qd4 {[%clk 0:02:12.1]} 29... Qb5 {[%clk 0:00:47.1]} 30. b4
{[%clk 0:02:09.7]} 30... Qe2 {[%clk 0:00:45.4]} 31. Qd8 {[%clk 0:01:55.2]} 31...
Kg6 {[%clk 0:00:39.3]} 32. Qf6+ {[%clk 0:01:54.4]} 32... Kh5 {[%clk 0:00:38.3]}
33. Rg1 {[%clk 0:01:53]} 33... Bc8 {[%clk 0:00:29.9]} 34. Qf7+ {[%clk
0:01:09.3]} 34... Kg4 {[%clk 0:00:17.9]} 35. Qd5 {[%clk 0:01:08.2]} 35... Kh4
{[%clk 0:00:14.9]} 36. c4 {[%clk 0:01:03.1]} 36... f4 {[%clk 0:00:12.5]} 37. c5
{[%clk 0:01:02.3]} 37... Bf5 {[%clk 0:00:08.9]} 38. Qf3 {[%clk 0:00:55]} 38...
Qd2 {[%clk 0:00:06]} 39. g3+ {[%clk 0:00:50.7]} 39... Kh3 {[%clk 0:00:04.8]} 40.
gxf4+ {[%clk 0:00:47.8]} 40... Kh4 {[%clk 0:00:02.5]} 41. fxg5 {[%clk
0:00:44.5]} 41... hxg5 {[%clk 0:00:01.6]} 42. Qg3+ {[%clk 0:00:11.9]} 42... Kh5
{[%clk 0:00:02.2]} 43. Qf3+ {[%clk 0:00:12]} 43... Kh4 {[%clk 0:00:01.3]} 44.
cxb6 {[%clk 0:00:11.5]} 44... g4 {[%clk 0:00:01.5]} 45. Qg3+ {[%clk 0:00:10.4]}
45... Kh5 {[%clk 0:00:02.1]} 46. Qg2 {[%clk 0:00:09.2]} 46... Qc2 {[%clk
0:00:03]} 47. Qxc2 {[%clk 0:00:08.5]} 47... Bxc2 {[%clk 0:00:03.9]} 48. Re1
{[%clk 0:00:07.3]} 48... Be4+ {[%clk 0:00:04.8]} 49. Rxe4 {[%clk 0:00:06]} 49...
axb6 {[%clk 0:00:05.7]} 50. e6 {[%clk 0:00:06.1]} 50... Kg5 {[%clk 0:00:06.1]}
51. e7 {[%clk 0:00:06.4]} 51... Kh4 {[%clk 0:00:02.5]} 52. e8=Q {[%clk
0:00:07.3]} 52... Kh3 {[%clk 0:00:03.4]} 53. Qe6 {[%clk 0:00:06.7]} 53... Kh4
{[%clk 0:00:03.4]} 54. Qxg4# {[%clk 0:00:07.2]} 1-0

[Event "Early-Titled-Tuesday-Blitz-December-26-2023"]
[Site "Chess.com"]
[Date "2023.12.26"]
[Round "9"]
[White "viktorskliarov"]
[Black "defenceboy"]
[Result "1-0"]
[WhiteElo "2663"]
[BlackElo "2768"]
[TimeControl "180+1"]
[EndTime "9:46:21 PST"]
[Termination "viktorskliarov won by checkmate"]

1. e4 {[%clk 0:03:00.9]} 1... c5 {[%clk 0:02:49]} 2. Nf3 {[%clk 0:02:59]} 2...
Nc6 {[%clk 0:02:49.3]} 3. Bb5 {[%clk 0:02:58.9]} 3... g6 {[%clk 0:02:49.4]} 4.
O-O {[%clk 0:02:58.9]} 4... Bg7 {[%clk 0:02:49.7]} 5. Re1 {[%clk 0:02:59.6]}
5... e5 {[%clk 0:02:49.2]} 6. Bxc6 {[%clk 0:02:59.3]} 6... dxc6 {[%clk
0:02:48.6]} 7. d3 {[%clk 0:02:59.6]} 7... Qe7 {[%clk 0:02:44.2]} 8. Be3 {[%clk
0:02:58.8]} 8... Nf6 {[%clk 0:02:43.5]} 9. h3 {[%clk 0:02:57.7]} 9... O-O {[%clk
0:02:42.6]} 10. Nbd2 {[%clk 0:02:57.9]} 10... Nh5 {[%clk 0:02:42.4]} 11. a3
{[%clk 0:02:57.3]} 11... Nf4 {[%clk 0:02:34.3]} 12. b4 {[%clk 0:02:46.1]} 12...
cxb4 {[%clk 0:02:31.9]} 13. axb4 {[%clk 0:02:47]} 13... Qxb4 {[%clk 0:02:32.1]}
14. Qb1 {[%clk 0:02:24]} 14... Qe7 {[%clk 0:02:21.8]} 15. Nc4 {[%clk 0:01:47.7]}
15... a6 {[%clk 0:01:43.7]} 16. Ra5 {[%clk 0:01:31.1]} 16... b5 {[%clk
0:01:08.5]} 17. Nb6 {[%clk 0:01:26.3]} 17... Rb8 {[%clk 0:00:40.9]} 18. Nxc8
{[%clk 0:01:24.2]} 18... Rbxc8 {[%clk 0:00:40.5]} 19. Rxa6 {[%clk 0:01:24.1]}
19... Ne6 {[%clk 0:00:38.6]} 20. Qa1 {[%clk 0:01:18.8]} 20... h5 {[%clk
0:00:27.2]} 21. Qc3 {[%clk 0:01:03.1]} 21... c5 {[%clk 0:00:19.5]} 22. Qa5
{[%clk 0:00:35.7]} 22... b4 {[%clk 0:00:14.9]} 23. Nd2 {[%clk 0:00:35.4]} 23...
g5 {[%clk 0:00:09.3]} 24. Nc4 {[%clk 0:00:31.6]} 24... g4 {[%clk 0:00:08.5]} 25.
hxg4 {[%clk 0:00:30.4]} 25... hxg4 {[%clk 0:00:09.4]} 26. g3 {[%clk 0:00:28.9]}
26... Rfd8 {[%clk 0:00:07.9]} 27. Nb6 {[%clk 0:00:19.7]} 27... Rb8 {[%clk
0:00:07.4]} 28. Nd5 {[%clk 0:00:19.7]} 28... Qb7 {[%clk 0:00:06]} 29. Ra7 {[%clk
0:00:16.3]} 29... Qb5 {[%clk 0:00:04.3]} 30. Ne7+ {[%clk 0:00:09.5]} 30... Kf8
{[%clk 0:00:03.8]} 31. Nf5 {[%clk 0:00:08.9]} 31... Qxa5 {[%clk 0:00:03.8]} 32.
Rxa5 {[%clk 0:00:09.1]} 32... Rdc8 {[%clk 0:00:04.1]} 33. Rea1 {[%clk 0:00:06]}
33... b3 {[%clk 0:00:04.1]} 34. cxb3 {[%clk 0:00:06.1]} 34... Rxb3 {[%clk
0:00:05]} 35. R1a3 {[%clk 0:00:05.8]} 35... Rxa3 {[%clk 0:00:05]} 36. Rxa3
{[%clk 0:00:06.7]} 36... Bf6 {[%clk 0:00:05.2]} 37. Ra7 {[%clk 0:00:06.3]} 37...
Rd8 {[%clk 0:00:03.7]} 38. Ra5 {[%clk 0:00:04.1]} 38... Rxd3 {[%clk 0:00:03.4]}
39. Bxc5+ {[%clk 0:00:04.1]} 39... Nxc5 {[%clk 0:00:03.6]} 40. Rxc5 {[%clk
0:00:05]} 40... Kg8 {[%clk 0:00:03.9]} 41. Rc8+ {[%clk 0:00:05.1]} 41... Kh7
{[%clk 0:00:04.3]} 42. Kg2 {[%clk 0:00:05.5]} 42... Kg6 {[%clk 0:00:04.7]} 43.
Rc6 {[%clk 0:00:05.5]} 43... Kg5 {[%clk 0:00:04.4]} 44. Rc8 {[%clk 0:00:05]}
44... Kg6 {[%clk 0:00:04.5]} 45. Rg8+ {[%clk 0:00:05.2]} 45... Kh5 {[%clk
0:00:03.9]} 46. Rf8 {[%clk 0:00:03.3]} 46... Kg6 {[%clk 0:00:04]} 47. Rg8+
{[%clk 0:00:03.8]} 47... Kh5 {[%clk 0:00:04.5]} 48. Ne3 {[%clk 0:00:02.8]} 48...
Rd4 {[%clk 0:00:03.9]} 49. Nxg4 {[%clk 0:00:02.6]} 49... Be7 {[%clk 0:00:01.9]}
50. Nxe5 {[%clk 0:00:02.5]} 50... Rxe4 {[%clk 0:00:01.7]} 51. Nxf7 {[%clk
0:00:03.1]} 51... Bc5 {[%clk 0:00:01.8]} 52. Rg5# {[%clk 0:00:02.2]} 1-0

[Event "Early-Titled-Tuesday-Blitz-December-26-2023"]
[Site "Chess.com"]
[Date "2023.12.26"]
[Round "9"]
[White "Angry_Twin"]
[Black "Szparu"]
[Result "0-1"]
[WhiteElo "2944"]
[BlackElo "2895"]
[TimeControl "180+1"]
[EndTime "9:46:26 PST"]
[Termination "Szparu won by checkmate"]

1. e4 {[%clk 0:03:00.9]} 1... e6 {[%clk 0:03:00.4]} 2. d4 {[%clk 0:03:00.9]}
2... d5 {[%clk 0:03:01.3]} 3. Nd2 {[%clk 0:03:01.6]} 3... Be7 {[%clk 0:03:01.1]}
4. Ngf3 {[%clk 0:03:01.5]} 4... Nf6 {[%clk 0:03:01.2]} 5. e5 {[%clk 0:03:02.1]}
5... Nfd7 {[%clk 0:03:01.6]} 6. Bd3 {[%clk 0:03:02.8]} 6... c5 {[%clk
0:03:02.2]} 7. c3 {[%clk 0:03:03.4]} 7... Nc6 {[%clk 0:03:02.7]} 8. O-O {[%clk
0:03:03.8]} 8... a5 {[%clk 0:03:03.3]} 9. a4 {[%clk 0:02:53.5]} 9... cxd4 {[%clk
0:03:03.4]} 10. cxd4 {[%clk 0:02:53.3]} 10... Nb4 {[%clk 0:03:04]} 11. Bb1
{[%clk 0:02:48.1]} 11... b6 {[%clk 0:03:03.8]} 12. Re1 {[%clk 0:02:47.4]} 12...
Ba6 {[%clk 0:03:04.1]} 13. Nf1 {[%clk 0:02:47]} 13... Rc8 {[%clk 0:03:00]} 14.
Ra3 {[%clk 0:02:28.3]} 14... Nb8 {[%clk 0:02:59.7]} 15. Rc3 {[%clk 0:02:24.5]}
15... N8c6 {[%clk 0:02:59.3]} 16. Ng3 {[%clk 0:02:21.8]} 16... h5 {[%clk
0:02:59.5]} 17. h3 {[%clk 0:02:16.4]} 17... Kd7 {[%clk 0:02:55.8]} 18. Be3
{[%clk 0:01:54.7]} 18... Kc7 {[%clk 0:02:43.3]} 19. Qd2 {[%clk 0:01:54.8]} 19...
Kb7 {[%clk 0:02:42.7]} 20. Rec1 {[%clk 0:01:54.7]} 20... f6 {[%clk 0:02:27.9]}
21. exf6 {[%clk 0:01:36.2]} 21... gxf6 {[%clk 0:02:27.9]} 22. Bf4 {[%clk
0:01:35]} 22... e5 {[%clk 0:02:21.4]} 23. dxe5 {[%clk 0:01:12.7]} 23... d4
{[%clk 0:02:21.8]} 24. Nxd4 {[%clk 0:00:56.8]} 24... Qxd4 {[%clk 0:02:18.6]} 25.
Qxd4 {[%clk 0:00:55]} 25... Nxd4 {[%clk 0:02:18.8]} 26. exf6 {[%clk 0:00:55.9]}
26... Bc5 {[%clk 0:02:10.1]} 27. Re1 {[%clk 0:00:51.4]} 27... Ka7 {[%clk
0:02:06.1]} 28. f7 {[%clk 0:00:49.6]} 28... Nd5 {[%clk 0:02:02.4]} 29. Be5
{[%clk 0:00:49.3]} 29... Nxc3 {[%clk 0:01:11.8]} 30. bxc3 {[%clk 0:00:48.4]}
30... Nc6 {[%clk 0:01:11.7]} 31. Bxh8 {[%clk 0:00:48]} 31... Rxh8 {[%clk
0:01:12.3]} 32. Re8 {[%clk 0:00:48.4]} 32... Rf8 {[%clk 0:01:09.9]} 33. Bg6
{[%clk 0:00:45.7]} 33... h4 {[%clk 0:01:00.8]} 34. Ne4 {[%clk 0:00:44.8]} 34...
Be7 {[%clk 0:00:56.2]} 35. Nf6 {[%clk 0:00:40.4]} 35... Bc4 {[%clk 0:00:47]} 36.
Nd7 {[%clk 0:00:24]} 36... Rxf7 {[%clk 0:00:39.2]} 37. Bxf7 {[%clk 0:00:23.7]}
37... Bxf7 {[%clk 0:00:39.9]} 38. Rh8 {[%clk 0:00:24.3]} 38... Be6 {[%clk
0:00:36.1]} 39. Nf8 {[%clk 0:00:23.5]} 39... Bb3 {[%clk 0:00:35.4]} 40. Ng6
{[%clk 0:00:22.1]} 40... Bf6 {[%clk 0:00:35]} 41. Rh6 {[%clk 0:00:21.7]} 41...
Bxc3 {[%clk 0:00:34.7]} 42. Nxh4 {[%clk 0:00:20.4]} 42... Bxa4 {[%clk
0:00:34.1]} 43. Nf5 {[%clk 0:00:19.5]} 43... Bb5 {[%clk 0:00:15]} 44. Nd6 {[%clk
0:00:19.2]} 44... Ka6 {[%clk 0:00:12.3]} 45. Ne4 {[%clk 0:00:14.7]} 45... Bd4
{[%clk 0:00:11.1]} 46. g4 {[%clk 0:00:09.9]} 46... a4 {[%clk 0:00:11.6]} 47. g5
{[%clk 0:00:09.9]} 47... a3 {[%clk 0:00:12]} 48. Nd2 {[%clk 0:00:10.6]} 48... a2
{[%clk 0:00:08.7]} 49. Nb3 {[%clk 0:00:11]} 49... Ba4 {[%clk 0:00:07.2]} 50.
Rxc6 {[%clk 0:00:05.6]} 50... Bxc6 {[%clk 0:00:06.4]} 51. h4 {[%clk 0:00:04.7]}
51... Bd5 {[%clk 0:00:06.6]} 52. h5 {[%clk 0:00:01.8]} 52... Bxb3 {[%clk
0:00:06.4]} 53. g6 {[%clk 0:00:02]} 53... a1=Q+ {[%clk 0:00:07.3]} 54. Kg2
{[%clk 0:00:02.8]} 54... Bd5+ {[%clk 0:00:07.5]} 55. Kg3 {[%clk 0:00:03.4]}
55... Qg1+ {[%clk 0:00:07.4]} 56. Kf4 {[%clk 0:00:04.3]} 56... Qxf2+ {[%clk
0:00:07.5]} 57. Kg5 {[%clk 0:00:04.7]} 57... Be3+ {[%clk 0:00:07.2]} 58. Kg4
{[%clk 0:00:04.5]} 58... Be6# {[%clk 0:00:07.6]} 0-1

[Event "Early-Titled-Tuesday-Blitz-December-26-2023"]
[Site "Chess.com"]
[Date "2023.12.26"]
[Round "9"]
[White "Mikhail_Golubev"]
[Black "Evgeny81"]
[Result "1-0"]
[WhiteElo "2637"]
[BlackElo "2763"]
[TimeControl "180+1"]
[EndTime "9:46:27 PST"]
[Termination "Mikhail_Golubev won by resignation"]

1. e4 {[%clk 0:03:00.9]} 1... e5 {[%clk 0:02:59.6]} 2. Nf3 {[%clk 0:03:00.6]}
2... Nc6 {[%clk 0:02:59.9]} 3. Bc4 {[%clk 0:03:00.6]} 3... Nf6 {[%clk
0:02:59.4]} 4. Ng5 {[%clk 0:03:00.6]} 4... d5 {[%clk 0:02:59.2]} 5. exd5 {[%clk
0:03:00.8]} 5... Na5 {[%clk 0:02:59.4]} 6. Bb5+ {[%clk 0:03:01]} 6... Bd7 {[%clk
0:02:59.6]} 7. Qe2 {[%clk 0:02:59.7]} 7... Be7 {[%clk 0:02:59]} 8. Nc3 {[%clk
0:02:56.1]} 8... Bxb5 {[%clk 0:02:56.1]} 9. Qxb5+ {[%clk 0:02:52.8]} 9... c6
{[%clk 0:02:56.3]} 10. dxc6 {[%clk 0:02:51.6]} 10... Nxc6 {[%clk 0:02:57.2]} 11.
d3 {[%clk 0:02:20.6]} 11... O-O {[%clk 0:02:54.2]} 12. Nf3 {[%clk 0:02:19.7]}
12... Nd4 {[%clk 0:02:49.5]} 13. Nxd4 {[%clk 0:02:17]} 13... exd4 {[%clk
0:02:50.4]} 14. Ne4 {[%clk 0:01:57.7]} 14... Rc8 {[%clk 0:02:43.9]} 15. O-O
{[%clk 0:01:46.3]} 15... Nxe4 {[%clk 0:02:32]} 16. dxe4 {[%clk 0:01:45.2]} 16...
Rxc2 {[%clk 0:02:32.6]} 17. Qd3 {[%clk 0:01:40.2]} 17... Qc8 {[%clk 0:02:24.3]}
18. Rd1 {[%clk 0:01:26.3]} 18... Rd8 {[%clk 0:02:09.4]} 19. Rb1 {[%clk
0:01:18.6]} 19... Bh4 {[%clk 0:01:49.5]} 20. Bd2 {[%clk 0:01:07.2]} 20... h6
{[%clk 0:01:34.7]} 21. Rdc1 {[%clk 0:00:54.8]} 21... Rc6 {[%clk 0:01:24.6]} 22.
Rxc6 {[%clk 0:00:51]} 22... Qxc6 {[%clk 0:01:25.5]} 23. Rc1 {[%clk 0:00:46.5]}
23... Qe6 {[%clk 0:01:25]} 24. b3 {[%clk 0:00:42.6]} 24... Bg5 {[%clk
0:01:21.7]} 25. f4 {[%clk 0:00:34.3]} 25... Bf6 {[%clk 0:01:07.1]} 26. h3 {[%clk
0:00:32.2]} 26... Bh4 {[%clk 0:00:49.2]} 27. Kh2 {[%clk 0:00:27.9]} 27... a6
{[%clk 0:00:41]} 28. Rc4 {[%clk 0:00:25.7]} 28... Bf2 {[%clk 0:00:23.9]} 29. Qf3
{[%clk 0:00:14.5]} 29... b5 {[%clk 0:00:19.5]} 30. Rc1 {[%clk 0:00:11.4]} 30...
Bh4 {[%clk 0:00:15.9]} 31. Qd3 {[%clk 0:00:10.1]} 31... Re8 {[%clk 0:00:12.4]}
32. e5 {[%clk 0:00:09.4]} 32... Rd8 {[%clk 0:00:12.7]} 33. Qe4 {[%clk
0:00:08.6]} 33... Be7 {[%clk 0:00:11.5]} 34. Rc6 {[%clk 0:00:07.7]} 34... Qd7
{[%clk 0:00:08.5]} 35. Rxa6 {[%clk 0:00:07.1]} 35... d3 {[%clk 0:00:08.9]} 36.
e6 {[%clk 0:00:07.4]} 36... Qd5 {[%clk 0:00:06.9]} 37. Qxd5 {[%clk 0:00:06.2]}
37... Rxd5 {[%clk 0:00:06.5]} 38. Ra8+ {[%clk 0:00:04.1]} 38... Rd8 {[%clk
0:00:02]} 39. Rxd8+ {[%clk 0:00:03]} 39... Bxd8 {[%clk 0:00:02.9]} 40. exf7+
{[%clk 0:00:03.3]} 40... Kxf7 {[%clk 0:00:03.8]} 41. Kg3 {[%clk 0:00:03.1]}
41... Ke6 {[%clk 0:00:03.7]} 42. Kf3 {[%clk 0:00:03]} 42... Kd5 {[%clk
0:00:02.8]} 43. Ke3 {[%clk 0:00:02.6]} 43... h5 {[%clk 0:00:02.4]} 44. Kxd3
{[%clk 0:00:02.4]} 44... Bb6 {[%clk 0:00:02.7]} 45. a4 {[%clk 0:00:02.2]} 45...
bxa4 {[%clk 0:00:02.5]} 46. bxa4 {[%clk 0:00:02.4]} 46... g6 {[%clk 0:00:03.1]}
47. a5 {[%clk 0:00:02.3]} 47... Bc7 {[%clk 0:00:03]} 48. a6 {[%clk 0:00:01.6]}
48... Kc6 {[%clk 0:00:03.2]} 49. Be3 {[%clk 0:00:01.6]} 49... Bd6 {[%clk
0:00:02.9]} 50. a7 {[%clk 0:00:01.7]} 50... Kb7 {[%clk 0:00:02.9]} 51. Ke4
{[%clk 0:00:01.5]} 51... Be7 {[%clk 0:00:02.9]} 52. f5 {[%clk 0:00:02]} 52...
gxf5+ {[%clk 0:00:02.8]} 53. Kxf5 {[%clk 0:00:02.3]} 53... h4 {[%clk 0:00:03.2]}
54. Kg6 {[%clk 0:00:03]} 54... Bd8 {[%clk 0:00:03.4]} 55. Kh5 {[%clk 0:00:03.9]}
55... Be7 {[%clk 0:00:03.6]} 56. Kg4 {[%clk 0:00:04.8]} 56... Bd8 {[%clk
0:00:03.8]} 57. Bf2 {[%clk 0:00:05.3]} 57... Bc7 {[%clk 0:00:02.8]} 58. Kxh4
{[%clk 0:00:05.3]} 1-0

[Event "Early-Titled-Tuesday-Blitz-December-26-2023"]
[Site "Chess.com"]
[Date "2023.12.26"]
[Round "9"]
[White "Sina_Movahed"]
[Black "MightyGMpretender"]
[Result "0-1"]
[WhiteElo "2995"]
[BlackElo "2764"]
[TimeControl "180+1"]
[EndTime "9:46:30 PST"]
[Termination "MightyGMpretender won on time"]

1. e4 {[%clk 0:02:57.7]} 1... g6 {[%clk 0:03:00.3]} 2. d4 {[%clk 0:02:52.5]}
2... Bg7 {[%clk 0:03:01]} 3. Nc3 {[%clk 0:02:51.2]} 3... a6 {[%clk 0:03:01.7]}
4. h4 {[%clk 0:02:49.9]} 4... h5 {[%clk 0:02:59.2]} 5. Nf3 {[%clk 0:02:49.3]}
5... b5 {[%clk 0:02:59.9]} 6. Ng5 {[%clk 0:02:48.9]} 6... d6 {[%clk 0:03:00.6]}
7. e5 {[%clk 0:02:36.1]} 7... Nh6 {[%clk 0:02:27.9]} 8. Qf3 {[%clk 0:01:53.5]}
8... Ra7 {[%clk 0:02:26.3]} 9. Bd3 {[%clk 0:01:23.5]} 9... Bg4 {[%clk 0:02:26]}
10. Qg3 {[%clk 0:01:20.8]} 10... Nc6 {[%clk 0:01:59.5]} 11. e6 {[%clk
0:00:24.7]} 11... fxe6 {[%clk 0:01:58.6]} 12. Bxg6+ {[%clk 0:00:24.7]} 12... Kd7
{[%clk 0:01:58.5]} 13. d5 {[%clk 0:00:25.2]} 13... exd5 {[%clk 0:01:47.1]} 14.
Nxd5 {[%clk 0:00:26.1]} 14... Nd4 {[%clk 0:01:22.3]} 15. c3 {[%clk 0:00:20]}
15... Ndf5 {[%clk 0:01:02.7]} 16. Qd3 {[%clk 0:00:18.9]} 16... e6 {[%clk
0:01:03.4]} 17. Ne3 {[%clk 0:00:16.9]} 17... Qf6 {[%clk 0:00:59.4]} 18. Bxf5
{[%clk 0:00:14.2]} 18... Bxf5 {[%clk 0:00:56.4]} 19. Qe2 {[%clk 0:00:13]} 19...
Bg6 {[%clk 0:00:52.9]} 20. Nc2 {[%clk 0:00:10.2]} 20... Nf5 {[%clk 0:00:46.4]}
21. Be3 {[%clk 0:00:10.2]} 21... Raa8 {[%clk 0:00:42.4]} 22. Rd1 {[%clk
0:00:09.4]} 22... Rhf8 {[%clk 0:00:32.3]} 23. Nd4 {[%clk 0:00:08.9]} 23... Nxd4
{[%clk 0:00:31.5]} 24. Bxd4 {[%clk 0:00:08.7]} 24... e5 {[%clk 0:00:30.6]} 25.
Be3 {[%clk 0:00:09.2]} 25... Qf5 {[%clk 0:00:27.1]} 26. Rh3 {[%clk 0:00:09.2]}
26... Qc2 {[%clk 0:00:25.9]} 27. Rd2 {[%clk 0:00:08.6]} 27... Qb1+ {[%clk
0:00:26.1]} 28. Rd1 {[%clk 0:00:09.1]} 28... Qxa2 {[%clk 0:00:26.3]} 29. Rg3
{[%clk 0:00:09]} 29... Qc4 {[%clk 0:00:19.6]} 30. Qxc4 {[%clk 0:00:08]} 30...
bxc4 {[%clk 0:00:20.5]} 31. Nh7 {[%clk 0:00:07.7]} 31... Bd3 {[%clk 0:00:05.8]}
32. Rxg7+ {[%clk 0:00:07.7]} 32... Kc6 {[%clk 0:00:04.3]} 33. Nxf8 {[%clk
0:00:08.3]} 33... Rxf8 {[%clk 0:00:05.2]} 34. f3 {[%clk 0:00:08.9]} 34... Rb8
{[%clk 0:00:05.8]} 35. b4 {[%clk 0:00:09]} 35... cxb3 {[%clk 0:00:05.2]} 36.
Rxd3 {[%clk 0:00:09.3]} 36... b2 {[%clk 0:00:05.9]} 37. Rd1 {[%clk 0:00:09.9]}
37... b1=Q {[%clk 0:00:06.8]} 38. Rxb1 {[%clk 0:00:10.5]} 38... Rxb1+ {[%clk
0:00:07.7]} 39. Kd2 {[%clk 0:00:10.6]} 39... a5 {[%clk 0:00:08.6]} 40. g4 {[%clk
0:00:10.5]} 40... a4 {[%clk 0:00:09]} 41. Rg8 {[%clk 0:00:10.7]} 41... Kb7
{[%clk 0:00:09]} 42. Kc2 {[%clk 0:00:10.4]} 42... Re1 {[%clk 0:00:08.5]} 43. Bg5
{[%clk 0:00:10.5]} 43... hxg4 {[%clk 0:00:06.7]} 44. fxg4 {[%clk 0:00:11.4]}
44... Rg1 {[%clk 0:00:07.2]} 45. h5 {[%clk 0:00:11.5]} 45... Rg2+ {[%clk
0:00:07.5]} 46. Kd3 {[%clk 0:00:11.4]} 46... a3 {[%clk 0:00:07.8]} 47. h6 {[%clk
0:00:11.1]} 47... a2 {[%clk 0:00:06.1]} 48. h7 {[%clk 0:00:11.4]} 48... Rh2
{[%clk 0:00:06.8]} 49. h8=Q {[%clk 0:00:04.2]} 49... Rxh8 {[%clk 0:00:07.5]} 50.
Rxh8 {[%clk 0:00:05.1]} 50... a1=Q {[%clk 0:00:08.2]} 51. Ke4 {[%clk 0:00:05.4]}
51... Qd1 {[%clk 0:00:08.3]} 52. Kf5 {[%clk 0:00:05.6]} 52... Qf3+ {[%clk
0:00:08.7]} 53. Kg6 {[%clk 0:00:05.9]} 53... Qd3+ {[%clk 0:00:09.2]} 54. Kh5
{[%clk 0:00:06]} 54... Qh3+ {[%clk 0:00:09.3]} 55. Bh4 {[%clk 0:00:06.9]} 55...
Qf3 {[%clk 0:00:09]} 56. Rh6 {[%clk 0:00:05.8]} 56... e4 {[%clk 0:00:09.2]} 57.
Rf6 {[%clk 0:00:06.7]} 57... Qd1 {[%clk 0:00:09.2]} 58. Re6 {[%clk 0:00:06.2]}
58... Qd5+ {[%clk 0:00:08.8]} 0-1